[Event "Early-Titled-Tuesday-Blitz-January-23-2024"]
[Site "Chess.com"]
[Date "2024.01.23"]
[Round "5"]
[White "GHANDEEVAM2003"]
[Black "rezamahdavi2008"]
[Result "1/2-1/2"]
[WhiteElo "3031"]
[BlackElo "2856"]
[TimeControl "180+1"]
[EndTime "8:56:47 PST"]
[Termination "Game drawn by repetition"]

1. c4 {[%clk 0:03:00.9]} 1... e6 {[%clk 0:03:00]} 2. Nf3 {[%clk 0:02:58.7]} 2...
Nf6 {[%clk 0:02:59]} 3. g3 {[%clk 0:02:58.4]} 3... d5 {[%clk 0:02:59.4]} 4. Bg2
{[%clk 0:02:58]} 4... d4 {[%clk 0:03:00]} 5. O-O {[%clk 0:02:57.9]} 5... c5
{[%clk 0:03:00.6]} 6. e3 {[%clk 0:02:56.7]} 6... Nc6 {[%clk 0:03:01.1]} 7. exd4
{[%clk 0:02:56.7]} 7... cxd4 {[%clk 0:03:02]} 8. Re1 {[%clk 0:02:57.5]} 8... Bd6
{[%clk 0:03:02.1]} 9. d3 {[%clk 0:02:55.8]} 9... O-O {[%clk 0:03:02]} 10. Bg5
{[%clk 0:02:55.8]} 10... h6 {[%clk 0:03:02.6]} 11. Bxf6 {[%clk 0:02:56.1]} 11...
Qxf6 {[%clk 0:03:03.5]} 12. Nbd2 {[%clk 0:02:56]} 12... Qe7 {[%clk 0:03:04.1]}
13. a3 {[%clk 0:02:41.5]} 13... a5 {[%clk 0:03:04.2]} 14. Qc2 {[%clk 0:02:41.8]}
14... Bd7 {[%clk 0:02:51]} 15. Rac1 {[%clk 0:02:37.7]} 15... Rfd8 {[%clk
0:02:43.5]} 16. c5 {[%clk 0:02:32.4]} 16... Bc7 {[%clk 0:02:43.8]} 17. Qc4
{[%clk 0:02:32.9]} 17... Be8 {[%clk 0:02:43.1]} 18. Qb5 {[%clk 0:02:29.5]} 18...
Nb4 {[%clk 0:02:14.5]} 19. Qc4 {[%clk 0:02:25]} 19... Nc6 {[%clk 0:02:14.8]} 20.
h4 {[%clk 0:02:23.6]} 20... a4 {[%clk 0:02:09.2]} 21. Ne4 {[%clk 0:02:21.5]}
21... Na5 {[%clk 0:02:04]} 22. Qc2 {[%clk 0:02:16.8]} 22... Nb3 {[%clk
0:02:04.7]} 23. Rcd1 {[%clk 0:02:14.2]} 23... Ba5 {[%clk 0:02:02.3]} 24. Nfd2
{[%clk 0:01:56]} 24... Nxd2 {[%clk 0:01:37.1]} 25. Nxd2 {[%clk 0:01:56.9]} 25...
Rac8 {[%clk 0:01:37.9]} 26. Rc1 {[%clk 0:01:51.4]} 26... Bxd2 {[%clk 0:00:57.5]}
27. Qxd2 {[%clk 0:01:52.3]} 27... Rxc5 {[%clk 0:00:58.2]} 28. Qb4 {[%clk
0:01:38.7]} 28... Rdc8 {[%clk 0:00:58.5]} 29. Bxb7 {[%clk 0:01:32.8]} 29... R8c7
{[%clk 0:00:46]} 30. Rxc5 {[%clk 0:01:31.8]} 30... Qxc5 {[%clk 0:00:45.4]} 31.
Qxc5 {[%clk 0:01:14.8]} 31... Rxc5 {[%clk 0:00:46.3]} 32. Ba6 {[%clk 0:01:15.7]}
32... Bb5 {[%clk 0:00:42.7]} 33. Bxb5 {[%clk 0:01:14.2]} 33... Rxb5 {[%clk
0:00:43.6]} 34. Re2 {[%clk 0:01:12.4]} 34... Rb3 {[%clk 0:00:41.7]} 35. Rd2
{[%clk 0:01:12.3]} 35... e5 {[%clk 0:00:37.6]} 36. Kf1 {[%clk 0:01:12.3]} 36...
f5 {[%clk 0:00:36.5]} 37. Ke2 {[%clk 0:01:11.6]} 37... Kf7 {[%clk 0:00:36.4]}
38. Kd1 {[%clk 0:01:08]} 38... Ke6 {[%clk 0:00:35.9]} 39. Kc2 {[%clk 0:01:08.1]}
39... Kd5 {[%clk 0:00:36.5]} 40. f3 {[%clk 0:00:55.6]} 40... Rb8 {[%clk
0:00:35]} 41. Rf2 {[%clk 0:00:51.8]} 41... Rc8+ {[%clk 0:00:27.8]} 42. Kb1
{[%clk 0:00:51.3]} 42... Rb8 {[%clk 0:00:27.6]} 43. g4 {[%clk 0:00:47.9]} 43...
Rf8 {[%clk 0:00:13.7]} 44. gxf5 {[%clk 0:00:47.8]} 44... Rxf5 {[%clk 0:00:14.6]}
45. b4 {[%clk 0:00:48.7]} 45... g5 {[%clk 0:00:11.5]} 46. hxg5 {[%clk
0:00:46.2]} 46... hxg5 {[%clk 0:00:12.4]} 47. b5 {[%clk 0:00:22.6]} 47... g4
{[%clk 0:00:12.5]} 48. b6 {[%clk 0:00:23.4]} 48... Kc6 {[%clk 0:00:04.8]} 49.
Rb2 {[%clk 0:00:19.8]} 49... Kb7 {[%clk 0:00:02.1]} 50. fxg4 {[%clk 0:00:20]}
50... Rg5 {[%clk 0:00:02.8]} 51. Rg2 {[%clk 0:00:14.8]} 51... Kxb6 {[%clk
0:00:03.2]} 52. Kc2 {[%clk 0:00:14.4]} 52... Kc5 {[%clk 0:00:03.9]} 53. Rg1
{[%clk 0:00:09.6]} 53... Kd5 {[%clk 0:00:04.2]} 54. Kd2 {[%clk 0:00:10.3]} 54...
e4 {[%clk 0:00:04.4]} 55. dxe4+ {[%clk 0:00:11.2]} 55... Kxe4 {[%clk 0:00:05.3]}
56. Ke2 {[%clk 0:00:09]} 56... d3+ {[%clk 0:00:02.2]} 57. Kd2 {[%clk 0:00:08.8]}
57... Kd4 {[%clk 0:00:02.9]} 58. Rg3 {[%clk 0:00:08.5]} 58... Kc4 {[%clk
0:00:03.6]} 59. Rg2 {[%clk 0:00:07.8]} 59... Kd4 {[%clk 0:00:03.7]} 60. Rg1
{[%clk 0:00:08.1]} 60... Ke4 {[%clk 0:00:04]} 61. Rg3 {[%clk 0:00:08.3]} 61...
Kf4 {[%clk 0:00:03.1]} 62. Rxd3 {[%clk 0:00:08.7]} 62... Kxg4 {[%clk 0:00:03.7]}
63. Kc3 {[%clk 0:00:08.3]} 63... Kf5 {[%clk 0:00:04.6]} 64. Kb4 {[%clk
0:00:08.7]} 64... Rg4+ {[%clk 0:00:05]} 65. Kb5 {[%clk 0:00:09]} 65... Ke6
{[%clk 0:00:05.7]} 66. Kc6 {[%clk 0:00:09.1]} 66... Rc4+ {[%clk 0:00:05.7]} 67.
Kb5 {[%clk 0:00:09.8]} 67... Rh4 {[%clk 0:00:06.6]} 68. Kc5 {[%clk 0:00:10.3]}
68... Rg4 {[%clk 0:00:07.1]} 69. Rd2 {[%clk 0:00:09.8]} 69... Rh4 {[%clk
0:00:07.6]} 70. Rd3 {[%clk 0:00:10.1]} 70... Rg4 {[%clk 0:00:08.2]} 71. Kc6
{[%clk 0:00:10.8]} 71... Rc4+ {[%clk 0:00:07.9]} 72. Kb6 {[%clk 0:00:11.5]}
72... Rh4 {[%clk 0:00:08.8]} 73. Kc5 {[%clk 0:00:12.2]} 1/2-1/2

[Event "Early-Titled-Tuesday-Blitz-January-23-2024"]
[Site "Chess.com"]
[Date "2024.01.23"]
[Round "5"]
[White "Grandelicious"]
[Black "BogdanDeac"]
[Result "1/2-1/2"]
[WhiteElo "2909"]
[BlackElo "3077"]
[TimeControl "180+1"]
[EndTime "8:56:54 PST"]
[Termination "Game drawn - insufficient material"]

1. Nf3 {[%clk 0:03:00.9]} 1... d5 {[%clk 0:02:59.6]} 2. e3 {[%clk 0:03:00.9]}
2... Nf6 {[%clk 0:02:58]} 3. c4 {[%clk 0:03:01.2]} 3... dxc4 {[%clk 0:02:58]} 4.
Bxc4 {[%clk 0:02:58.9]} 4... e6 {[%clk 0:02:58.5]} 5. O-O {[%clk 0:02:56.3]}
5... a6 {[%clk 0:02:59.1]} 6. Qe2 {[%clk 0:02:56.2]} 6... c5 {[%clk 0:02:55.3]}
7. Rd1 {[%clk 0:02:52.5]} 7... Be7 {[%clk 0:02:39.8]} 8. d4 {[%clk 0:02:49.5]}
8... Qc7 {[%clk 0:02:39.6]} 9. dxc5 {[%clk 0:02:44.3]} 9... Bxc5 {[%clk
0:02:38.5]} 10. a3 {[%clk 0:02:34.4]} 10... b5 {[%clk 0:02:22.8]} 11. Bd3 {[%clk
0:02:34.7]} 11... Bb7 {[%clk 0:02:20.8]} 12. b4 {[%clk 0:02:22.5]} 12... Bd6
{[%clk 0:02:18.8]} 13. Bb2 {[%clk 0:02:19.9]} 13... Nbd7 {[%clk 0:02:18.3]} 14.
Nbd2 {[%clk 0:02:16]} 14... O-O {[%clk 0:01:46.4]} 15. Rac1 {[%clk 0:02:13.9]}
15... Qb8 {[%clk 0:01:46.1]} 16. h3 {[%clk 0:02:01.4]} 16... Rd8 {[%clk
0:01:33.3]} 17. Nb3 {[%clk 0:01:29.5]} 17... Bc7 {[%clk 0:00:10]} 18. Nc5 {[%clk
0:00:51.2]} 18... Bxf3 {[%clk 0:00:04.9]} 19. Qxf3 {[%clk 0:00:48.1]} 19... Ne5
{[%clk 0:00:05.1]} 20. Bxe5 {[%clk 0:00:29.6]} 20... Bxe5 {[%clk 0:00:04.7]} 21.
Be4 {[%clk 0:00:28.8]} 21... Ra7 {[%clk 0:00:03.8]} 22. Rxd8+ {[%clk 0:00:24.7]}
22... Qxd8 {[%clk 0:00:04]} 23. Bb7 {[%clk 0:00:23.7]} 23... Bd6 {[%clk
0:00:03.1]} 24. Nxe6 {[%clk 0:00:21.6]} 24... Qd7 {[%clk 0:00:03.1]} 25. Rc8+
{[%clk 0:00:20.6]} 25... Ne8 {[%clk 0:00:03.3]} 26. Rd8 {[%clk 0:00:12.8]} 26...
Qxe6 {[%clk 0:00:02.9]} 27. Bc6 {[%clk 0:00:13.5]} 27... Re7 {[%clk 0:00:02]}
28. Qg4 {[%clk 0:00:09.2]} 28... f5 {[%clk 0:00:01.6]} 29. Qd1 {[%clk
0:00:08.6]} 29... Kf8 {[%clk 0:00:02.1]} 30. Qh5 {[%clk 0:00:06.8]} 30... g6
{[%clk 0:00:02.1]} 31. Qh6+ {[%clk 0:00:06.8]} 31... Kg8 {[%clk 0:00:02.6]} 32.
Qg5 {[%clk 0:00:06]} 32... Kf8 {[%clk 0:00:02.5]} 33. Qh6+ {[%clk 0:00:06.5]}
33... Kg8 {[%clk 0:00:03]} 34. Qh4 {[%clk 0:00:07.3]} 34... Kg7 {[%clk
0:00:03.3]} 35. Qd4+ {[%clk 0:00:07.5]} 35... Be5 {[%clk 0:00:03.7]} 36. Qb6
{[%clk 0:00:07.2]} 36... Bf6 {[%clk 0:00:04.1]} 37. Qb8 {[%clk 0:00:06.5]} 37...
Kf8 {[%clk 0:00:03.6]} 38. Bd7 {[%clk 0:00:05.9]} 38... Qe5 {[%clk 0:00:03.7]}
39. Qc8 {[%clk 0:00:04.6]} 39... Kf7 {[%clk 0:00:04]} 40. Bxe8+ {[%clk
0:00:04.8]} 40... Rxe8 {[%clk 0:00:04]} 41. Rd7+ {[%clk 0:00:05.2]} 41... Re7
{[%clk 0:00:04.2]} 42. Rxe7+ {[%clk 0:00:05.9]} 42... Qxe7 {[%clk 0:00:03.7]}
43. Qxa6 {[%clk 0:00:06.8]} 43... Qd7 {[%clk 0:00:04]} 44. g3 {[%clk 0:00:06.2]}
44... Be7 {[%clk 0:00:04.2]} 45. Kg2 {[%clk 0:00:05]} 45... Kg7 {[%clk
0:00:04.6]} 46. Qa8 {[%clk 0:00:05.1]} 46... Bf6 {[%clk 0:00:04.6]} 47. Qb8
{[%clk 0:00:04.9]} 47... Qd5+ {[%clk 0:00:04.1]} 48. Kg1 {[%clk 0:00:04.9]}
48... Qd7 {[%clk 0:00:04.7]} 49. Qa8 {[%clk 0:00:05.2]} 49... Bb2 {[%clk
0:00:04.8]} 50. Qa6 {[%clk 0:00:04]} 50... h6 {[%clk 0:00:04.8]} 51. Qa8 {[%clk
0:00:03.9]} 51... h5 {[%clk 0:00:04.9]} 52. Kg2 {[%clk 0:00:04.7]} 52... h4
{[%clk 0:00:05]} 53. gxh4 {[%clk 0:00:04.8]} 53... Kh7 {[%clk 0:00:05.6]} 54. h5
{[%clk 0:00:04.4]} 54... gxh5 {[%clk 0:00:05.2]} 55. Qf3 {[%clk 0:00:04.9]}
55... Qg7+ {[%clk 0:00:04]} 56. Kf1 {[%clk 0:00:04.9]} 56... Qf7 {[%clk
0:00:04.6]} 57. Qe2 {[%clk 0:00:04.6]} 57... Bxa3 {[%clk 0:00:04]} 58. Qxb5
{[%clk 0:00:04.8]} 58... Bb2 {[%clk 0:00:03.5]} 59. Qc6 {[%clk 0:00:03.8]} 59...
Be5 {[%clk 0:00:02.5]} 60. b5 {[%clk 0:00:04.1]} 60... Qc7 {[%clk 0:00:03]} 61.
Qe6 {[%clk 0:00:03]} 61... f4 {[%clk 0:00:03.3]} 62. Qf5+ {[%clk 0:00:03.3]}
62... Kg7 {[%clk 0:00:03.4]} 63. Qxh5 {[%clk 0:00:03.2]} 63... fxe3 {[%clk
0:00:02.8]} 64. Qg5+ {[%clk 0:00:03.8]} 64... Kf7 {[%clk 0:00:02.8]} 65. Qxe3
{[%clk 0:00:04.5]} 65... Qc4+ {[%clk 0:00:03]} 66. Qe2 {[%clk 0:00:04.8]} 66...
Qc1+ {[%clk 0:00:03.1]} 67. Kg2 {[%clk 0:00:05.2]} 67... Qc5 {[%clk 0:00:03.7]}
68. Qf3+ {[%clk 0:00:05.6]} 68... Ke7 {[%clk 0:00:03.7]} 69. Qb7+ {[%clk
0:00:05.7]} 69... Kf6 {[%clk 0:00:04]} 70. Qc6+ {[%clk 0:00:06.2]} 70... Qxc6+
{[%clk 0:00:03.8]} 71. bxc6 {[%clk 0:00:07.1]} 71... Ke6 {[%clk 0:00:04.1]} 72.
Kf3 {[%clk 0:00:07.9]} 72... Bh2 {[%clk 0:00:03.6]} 73. Ke4 {[%clk 0:00:08]}
73... Kd6 {[%clk 0:00:04.2]} 74. h4 {[%clk 0:00:08.3]} 74... Kxc6 {[%clk
0:00:04.1]} 75. h5 {[%clk 0:00:09]} 75... Bd6 {[%clk 0:00:04.3]} 76. h6 {[%clk
0:00:09.2]} 76... Bf8 {[%clk 0:00:04.8]} 77. h7 {[%clk 0:00:08.8]} 77... Bg7
{[%clk 0:00:05.4]} 78. Kf5 {[%clk 0:00:09.5]} 78... Kd6 {[%clk 0:00:05.4]} 79.
Kg6 {[%clk 0:00:09.8]} 79... Bh8 {[%clk 0:00:05.4]} 80. f4 {[%clk 0:00:09.8]}
80... Ke7 {[%clk 0:00:05.5]} 81. f5 {[%clk 0:00:10.4]} 81... Bf6 {[%clk
0:00:05.9]} 82. h8=Q {[%clk 0:00:09.8]} 82... Bxh8 {[%clk 0:00:06.4]} 83. f6+
{[%clk 0:00:10.7]} 83... Bxf6 {[%clk 0:00:07.1]} 1/2-1/2

[Event "Early-Titled-Tuesday-Blitz-January-23-2024"]
[Site "Chess.com"]
[Date "2024.01.23"]
[Round "5"]
[White "Smile2005"]
[Black "SaqoChess_Twitch"]
[Result "1-0"]
[WhiteElo "2400"]
[BlackElo "2605"]
[TimeControl "180+1"]
[EndTime "8:57:33 PST"]
[Termination "Smile2005 won by resignation"]

1. e4 {[%clk 0:03:00.9]} 1... c5 {[%clk 0:03:00.2]} 2. Nf3 {[%clk 0:03:00.8]}
2... d6 {[%clk 0:03:00.6]} 3. Bb5+ {[%clk 0:02:59.7]} 3... Bd7 {[%clk
0:03:00.8]} 4. Bxd7+ {[%clk 0:02:59.7]} 4... Qxd7 {[%clk 0:03:01.7]} 5. c4
{[%clk 0:02:59.7]} 5... Nc6 {[%clk 0:03:02.6]} 6. Nc3 {[%clk 0:02:36.5]} 6...
Nf6 {[%clk 0:03:02.4]} 7. O-O {[%clk 0:02:34.2]} 7... g6 {[%clk 0:03:01.6]} 8.
d4 {[%clk 0:02:32.3]} 8... cxd4 {[%clk 0:03:02.5]} 9. Nxd4 {[%clk 0:02:31.3]}
9... Bg7 {[%clk 0:03:03]} 10. Be3 {[%clk 0:02:25.7]} 10... O-O {[%clk 0:03:03]}
11. f3 {[%clk 0:02:24.2]} 11... e6 {[%clk 0:02:59.5]} 12. Qd2 {[%clk 0:02:22.9]}
12... Rfd8 {[%clk 0:02:59.5]} 13. Rfd1 {[%clk 0:02:23]} 13... d5 {[%clk
0:02:59.7]} 14. cxd5 {[%clk 0:02:18.9]} 14... exd5 {[%clk 0:03:00.6]} 15. exd5
{[%clk 0:02:16.3]} 15... Nxd5 {[%clk 0:03:01.5]} 16. Nxc6 {[%clk 0:02:13.5]}
16... bxc6 {[%clk 0:03:01.6]} 17. Nxd5 {[%clk 0:02:13.5]} 17... Qxd5 {[%clk
0:02:59.7]} 18. Qxd5 {[%clk 0:02:13.3]} 18... Rxd5 {[%clk 0:02:59.7]} 19. Rxd5
{[%clk 0:02:12.9]} 19... cxd5 {[%clk 0:03:00.6]} 20. Rd1 {[%clk 0:02:12.2]}
20... d4 {[%clk 0:02:55.1]} 21. Bf2 {[%clk 0:02:06.5]} 21... Rc8 {[%clk
0:02:54.1]} 22. h3 {[%clk 0:01:57.8]} 22... h5 {[%clk 0:02:48.2]} 23. Rd2 {[%clk
0:01:52.2]} 23... Rc1+ {[%clk 0:02:27.2]} 24. Kh2 {[%clk 0:01:51.5]} 24... Be5+
{[%clk 0:02:27.8]} 25. g3 {[%clk 0:01:35.5]} 25... h4 {[%clk 0:02:12.6]} 26. f4
{[%clk 0:01:34.4]} 26... Bf6 {[%clk 0:02:12.7]} 27. gxh4 {[%clk 0:01:28.5]}
27... a5 {[%clk 0:02:00.2]} 28. Bxd4 {[%clk 0:01:25.8]} 28... Bxd4 {[%clk
0:01:57]} 29. Rxd4 {[%clk 0:01:26.7]} 29... Rc2+ {[%clk 0:01:57.7]} 30. Kg3
{[%clk 0:01:26.7]} 30... Rxb2 {[%clk 0:01:58.5]} 31. Ra4 {[%clk 0:01:20.5]}
31... Rb5 {[%clk 0:01:58.4]} 32. Kg4 {[%clk 0:01:20.4]} 32... Kg7 {[%clk
0:01:57.9]} 33. Rc4 {[%clk 0:01:19.3]} 33... Kh6 {[%clk 0:01:51.3]} 34. Ra4
{[%clk 0:01:03.7]} 34... Rc5 {[%clk 0:01:46.4]} 35. Ra3 {[%clk 0:00:59.8]} 35...
Rd5 {[%clk 0:01:45.1]} 36. Ra4 {[%clk 0:00:55.3]} 36... f5+ {[%clk 0:01:17.1]}
37. Kg3 {[%clk 0:00:52.1]} 37... Kh5 {[%clk 0:01:14.4]} 38. Ra3 {[%clk
0:00:51.1]} 38... Rc5 {[%clk 0:01:14.2]} 39. Rd3 {[%clk 0:00:47]} 39... Rc2
{[%clk 0:01:08.9]} 40. Ra3 {[%clk 0:00:46.9]} 40... Rc5 {[%clk 0:01:05]} 41. Rd3
{[%clk 0:00:46.5]} 41... a4 {[%clk 0:01:04.5]} 42. Ra3 {[%clk 0:00:43.5]} 42...
Rc4 {[%clk 0:01:04.3]} 43. Rd3 {[%clk 0:00:43.3]} 43... Re4 {[%clk 0:00:55.7]}
44. Ra3 {[%clk 0:00:41.9]} 44... Rd4 {[%clk 0:00:52.7]} 45. Rc3 {[%clk
0:00:40.6]} 45... Kh6 {[%clk 0:00:40.4]} 46. Re3 {[%clk 0:00:35.8]} 46... Kg7
{[%clk 0:00:40]} 47. Ra3 {[%clk 0:00:35.5]} 47... Kf6 {[%clk 0:00:40.3]} 48. Rc3
{[%clk 0:00:32.6]} 48... Rb4 {[%clk 0:00:38.1]} 49. Ra3 {[%clk 0:00:31.8]} 49...
Rc4 {[%clk 0:00:37.3]} 50. Rd3 {[%clk 0:00:31]} 50... Ke6 {[%clk 0:00:37.8]} 51.
h5 {[%clk 0:00:19.4]} 51... gxh5 {[%clk 0:00:37.5]} 52. Kh4 {[%clk 0:00:18.9]}
52... Rxf4+ {[%clk 0:00:35.6]} 53. Kxh5 {[%clk 0:00:19.3]} 53... Rf2 {[%clk
0:00:32.5]} 54. Ra3 {[%clk 0:00:18.2]} 54... Rf4 {[%clk 0:00:32.8]} 55. Kg5
{[%clk 0:00:18.5]} 55... Re4 {[%clk 0:00:33.3]} 56. Rf3 {[%clk 0:00:18.2]} 56...
Re5 {[%clk 0:00:29.7]} 57. Rf4 {[%clk 0:00:18.1]} 57... Re1 {[%clk 0:00:21.5]}
58. Rxa4 {[%clk 0:00:16.8]} 58... Rg1+ {[%clk 0:00:22.1]} 59. Kf4 {[%clk
0:00:13.7]} 59... Rf1+ {[%clk 0:00:21.6]} 60. Kg3 {[%clk 0:00:12.1]} 60... Rg1+
{[%clk 0:00:21.9]} 61. Kf2 {[%clk 0:00:11.9]} 61... Rh1 {[%clk 0:00:21.9]} 62.
h4 {[%clk 0:00:11.4]} 62... Rh3 {[%clk 0:00:21.2]} 63. Kg2 {[%clk 0:00:10.4]}
63... Rc3 {[%clk 0:00:21.5]} 64. h5 {[%clk 0:00:10.2]} 64... Kf6 {[%clk
0:00:22]} 65. h6 {[%clk 0:00:09.6]} 65... Rc7 {[%clk 0:00:20.7]} 66. Ra6+ {[%clk
0:00:08.9]} 66... Kg5 {[%clk 0:00:21]} 67. Kf3 {[%clk 0:00:09]} 67... Rc3+
{[%clk 0:00:20.4]} 68. Kf2 {[%clk 0:00:09.1]} 68... Rh3 {[%clk 0:00:20.3]} 69.
a4 {[%clk 0:00:09]} 69... Kg4 {[%clk 0:00:19.3]} 70. Rg6+ {[%clk 0:00:08.5]}
70... Kf4 {[%clk 0:00:19.4]} 71. a5 {[%clk 0:00:08.4]} 71... Rh2+ {[%clk
0:00:19.2]} 72. Ke1 {[%clk 0:00:07.4]} 72... Kf3 {[%clk 0:00:18.4]} 73. a6
{[%clk 0:00:06.9]} 73... f4 {[%clk 0:00:17.1]} 74. a7 {[%clk 0:00:06.6]} 74...
Rh1+ {[%clk 0:00:17.6]} 75. Kd2 {[%clk 0:00:06.4]} 75... Ra1 {[%clk 0:00:18.1]}
76. h7 {[%clk 0:00:06.3]} 76... Ra2+ {[%clk 0:00:18.7]} 77. Kc3 {[%clk
0:00:06.3]} 77... Ra3+ {[%clk 0:00:19.2]} 78. Kb4 {[%clk 0:00:06.3]} 78... Rxa7
{[%clk 0:00:19.8]} 79. h8=Q {[%clk 0:00:06.7]} 79... Re7 {[%clk 0:00:19]} 80.
Qh3+ {[%clk 0:00:05.9]} 80... Ke4 {[%clk 0:00:19]} 81. Re6+ {[%clk 0:00:06]}
81... Rxe6 {[%clk 0:00:19.5]} 82. Qxe6+ {[%clk 0:00:06.9]} 82... Kd3 {[%clk
0:00:19.6]} 83. Qf5+ {[%clk 0:00:07.1]} 83... Ke3 {[%clk 0:00:20.2]} 84. Qe5+
{[%clk 0:00:07.6]} 84... Kf3 {[%clk 0:00:20.7]} 85. Kc3 {[%clk 0:00:08]} 85...
Kg3 {[%clk 0:00:21.6]} 86. Kd3 {[%clk 0:00:08]} 86... Kg4 {[%clk 0:00:21.8]} 87.
Ke4 {[%clk 0:00:08.2]} 87... f3 {[%clk 0:00:22.7]} 88. Qf4+ {[%clk 0:00:08.2]}
88... Kh3 {[%clk 0:00:23.6]} 89. Qxf3+ {[%clk 0:00:08.2]} 89... Kh2 {[%clk
0:00:24.1]} 90. Qg4 {[%clk 0:00:08.2]} 90... Kh1 {[%clk 0:00:24]} 91. Kf3 {[%clk
0:00:09.1]} 1-0

[Event "Early-Titled-Tuesday-Blitz-January-23-2024"]
[Site "Chess.com"]
[Date "2024.01.23"]
[Round "5"]
[White "Paladin61"]
[Black "nihalsarin"]
[Result "1/2-1/2"]
[WhiteElo "2761"]
[BlackElo "3180"]
[TimeControl "180+1"]
[EndTime "8:57:41 PST"]
[Termination "Game drawn by repetition"]

1. Nf3 {[%clk 0:03:00]} 1... f6 {[%clk 0:02:55.9]} 2. e4 {[%clk 0:02:55.7]} 2...
Kf7 {[%clk 0:02:54.1]} 3. d4 {[%clk 0:02:54.6]} 3... e6 {[%clk 0:02:53.8]} 4.
Nc3 {[%clk 0:02:53.4]} 4... d5 {[%clk 0:02:52.7]} 5. Bd3 {[%clk 0:02:50.5]} 5...
Nc6 {[%clk 0:02:52.3]} 6. O-O {[%clk 0:02:47.1]} 6... Nb4 {[%clk 0:02:52.3]} 7.
Re1 {[%clk 0:02:46.7]} 7... Nxd3 {[%clk 0:02:47.7]} 8. Qxd3 {[%clk 0:02:46.4]}
8... c6 {[%clk 0:02:48.4]} 9. Bf4 {[%clk 0:02:44.8]} 9... Ne7 {[%clk 0:02:48.1]}
10. h3 {[%clk 0:02:42.3]} 10... Ng6 {[%clk 0:02:47.7]} 11. Bh2 {[%clk
0:02:42.2]} 11... Bb4 {[%clk 0:02:47.1]} 12. a3 {[%clk 0:02:39.1]} 12... Ba5
{[%clk 0:02:47.1]} 13. b4 {[%clk 0:02:35.9]} 13... Bb6 {[%clk 0:02:47.2]} 14.
Na4 {[%clk 0:02:32.2]} 14... Re8 {[%clk 0:02:46.1]} 15. c4 {[%clk 0:02:25.5]}
15... dxe4 {[%clk 0:02:21.6]} 16. Qxe4 {[%clk 0:02:21]} 16... Bc7 {[%clk
0:02:22.5]} 17. Rad1 {[%clk 0:02:08.1]} 17... Bxh2+ {[%clk 0:02:20.3]} 18. Nxh2
{[%clk 0:02:08.2]} 18... a5 {[%clk 0:02:10.8]} 19. b5 {[%clk 0:02:03.1]} 19...
Bd7 {[%clk 0:02:05.4]} 20. b6 {[%clk 0:01:42.9]} 20... Nf8 {[%clk 0:01:31.9]}
21. Nc5 {[%clk 0:01:34.2]} 21... Bc8 {[%clk 0:01:31.5]} 22. Qb1 {[%clk
0:01:18.8]} 22... Kg8 {[%clk 0:01:21.9]} 23. Nf3 {[%clk 0:01:13.2]} 23... Qd6
{[%clk 0:01:21.6]} 24. Qb2 {[%clk 0:01:01.9]} 24... a4 {[%clk 0:01:12.9]} 25.
Ne4 {[%clk 0:00:56.5]} 25... Qe7 {[%clk 0:01:13]} 26. c5 {[%clk 0:00:56.2]}
26... Rd8 {[%clk 0:01:12.9]} 27. Qb4 {[%clk 0:00:38.6]} 27... Ng6 {[%clk
0:00:55.8]} 28. Nd6 {[%clk 0:00:36.9]} 28... Nf4 {[%clk 0:00:56.4]} 29. Nd2
{[%clk 0:00:27.9]} 29... Nd3 {[%clk 0:00:51.2]} 30. Qc3 {[%clk 0:00:24.2]} 30...
Nxe1 {[%clk 0:00:51.1]} 31. Rxe1 {[%clk 0:00:25.1]} 31... Rxd6 {[%clk
0:00:50.4]} 32. cxd6 {[%clk 0:00:24.8]} 32... Qxd6 {[%clk 0:00:51.3]} 33. Nc4
{[%clk 0:00:18.4]} 33... Qd5 {[%clk 0:00:40.1]} 34. Qb4 {[%clk 0:00:13.1]} 34...
Bd7 {[%clk 0:00:26.8]} 35. Nd6 {[%clk 0:00:09.4]} 35... Rb8 {[%clk 0:00:17]} 36.
Ne4 {[%clk 0:00:09.8]} 36... Be8 {[%clk 0:00:12.3]} 37. Nc3 {[%clk 0:00:08.6]}
37... Qd7 {[%clk 0:00:10.6]} 38. Nxa4 {[%clk 0:00:08.7]} 38... Bf7 {[%clk
0:00:11.2]} 39. Nc5 {[%clk 0:00:09.1]} 39... Qd5 {[%clk 0:00:11.7]} 40. a4
{[%clk 0:00:08.7]} 40... e5 {[%clk 0:00:10.1]} 41. dxe5 {[%clk 0:00:08.9]} 41...
fxe5 {[%clk 0:00:11]} 42. a5 {[%clk 0:00:09]} 42... Qd6 {[%clk 0:00:11.7]} 43.
a6 {[%clk 0:00:07]} 43... bxa6 {[%clk 0:00:11.8]} 44. b7 {[%clk 0:00:07.6]}
44... Bd5 {[%clk 0:00:02.6]} 45. Qb6 {[%clk 0:00:07.4]} 45... Qg6 {[%clk
0:00:03.2]} 46. g3 {[%clk 0:00:04.1]} 46... Qf7 {[%clk 0:00:03.8]} 47. Rd1
{[%clk 0:00:03.3]} 47... Qf3 {[%clk 0:00:03.9]} 48. Rxd5 {[%clk 0:00:03.5]}
48... Qxd5 {[%clk 0:00:04.8]} 49. Nxa6 {[%clk 0:00:02.9]} 49... Qd1+ {[%clk
0:00:04]} 50. Kh2 {[%clk 0:00:03.2]} 50... Rxb7 {[%clk 0:00:02.4]} 51. Qxb7
{[%clk 0:00:04.1]} 51... Qe2 {[%clk 0:00:02]} 52. Qb6 {[%clk 0:00:03.8]} 52...
c5 {[%clk 0:00:02.5]} 53. Qxc5 {[%clk 0:00:02]} 53... Qxa6 {[%clk 0:00:02.3]}
54. Qd5+ {[%clk 0:00:02.4]} 54... Kf8 {[%clk 0:00:02.2]} 55. Qxe5 {[%clk
0:00:02.9]} 55... h6 {[%clk 0:00:02.5]} 56. Qe3 {[%clk 0:00:02.5]} 56... Kg8
{[%clk 0:00:03]} 57. h4 {[%clk 0:00:03]} 57... Kh8 {[%clk 0:00:03.4]} 58. Kg2
{[%clk 0:00:03.5]} 58... Qa8+ {[%clk 0:00:04]} 59. Kg1 {[%clk 0:00:03.8]} 59...
Qa1+ {[%clk 0:00:04.3]} 60. Kh2 {[%clk 0:00:04.2]} 60... Qa8 {[%clk 0:00:05.2]}
61. Qf4 {[%clk 0:00:04.4]} 61... Qe8 {[%clk 0:00:05.3]} 62. Qe3 {[%clk
0:00:04.4]} 62... Qa8 {[%clk 0:00:05.6]} 63. Kg1 {[%clk 0:00:04.6]} 63... Qa1+
{[%clk 0:00:05.7]} 64. Kg2 {[%clk 0:00:04.6]} 64... Qa8+ {[%clk 0:00:06.6]} 65.
f3 {[%clk 0:00:05]} 65... Qa2+ {[%clk 0:00:06.6]} 66. Qf2 {[%clk 0:00:05]} 66...
Qf7 {[%clk 0:00:07.5]} 67. g4 {[%clk 0:00:04.7]} 67... Qd7 {[%clk 0:00:07.4]}
68. h5 {[%clk 0:00:04.8]} 68... Kg8 {[%clk 0:00:07.9]} 69. Qe3 {[%clk
0:00:04.7]} 69... Qc6 {[%clk 0:00:07]} 70. Qe2 {[%clk 0:00:04.8]} 70... Kh8
{[%clk 0:00:06.6]} 71. Qe3 {[%clk 0:00:04.6]} 71... Qc2+ {[%clk 0:00:06.5]} 72.
Kg3 {[%clk 0:00:04.8]} 72... Qc7+ {[%clk 0:00:07.4]} 73. f4 {[%clk 0:00:05]}
73... Qd7 {[%clk 0:00:07.5]} 74. Qe4 {[%clk 0:00:04.1]} 74... Qd1 {[%clk
0:00:06.8]} 75. Qf3 {[%clk 0:00:04]} 75... Qg1+ {[%clk 0:00:06.6]} 76. Kh3
{[%clk 0:00:04.4]} 76... Kh7 {[%clk 0:00:06.8]} 77. Qe4+ {[%clk 0:00:04.4]}
77... Kh8 {[%clk 0:00:07.3]} 78. Qe8+ {[%clk 0:00:04.8]} 78... Kh7 {[%clk
0:00:07.8]} 79. Qg6+ {[%clk 0:00:04.4]} 79... Kh8 {[%clk 0:00:08]} 80. Qe8+
{[%clk 0:00:04.4]} 80... Kh7 {[%clk 0:00:08.3]} 81. Qe4+ {[%clk 0:00:04.9]}
81... Kh8 {[%clk 0:00:08.9]} 82. Qf3 {[%clk 0:00:04.9]} 82... Kh7 {[%clk
0:00:08.9]} 83. Qd3+ {[%clk 0:00:05.1]} 83... Kh8 {[%clk 0:00:09.1]} 84. Qd8+
{[%clk 0:00:04]} 84... Kh7 {[%clk 0:00:09.3]} 85. Qd3+ {[%clk 0:00:04.3]} 85...
Kh8 {[%clk 0:00:09.6]} 86. Qd8+ {[%clk 0:00:03.8]} 86... Kh7 {[%clk 0:00:09.9]}
87. Qd3+ {[%clk 0:00:04.4]} 1/2-1/2